[Event "Titled Tuesday Blitz March 15 Late 2022"]
[White "Andreikin, Dmitry"]
[Black "Paravyan, David"]
[WhiteFideId "4158814"]
[BlackFideId "4194985"]
[WhiteElo "2736"]
[BlackElo "2569"]
[Result "0-1"]
[Round "11"]
[TimeControl "180+1"]
[Date "2022.03.15"]
[WhiteClock "0:00:07"]
[BlackClock "0:00:32"]

1. e4 {[%clk 0:03:00]}  e5 {[%clk 0:02:59]} 2. Nf3 {[%clk 0:03:00]}  Nf6 {[%clk 0:02:59]} 3. Nc3 {[%clk 0:03:00]}  Nc6 {[%clk 0:02:59]} 4. d4 {[%clk 0:02:58]}  exd4 {[%clk 0:03:00]} 5. Nxd4 {[%clk 0:02:59]}  Bb4 {[%clk 0:03:00]} 6. Nxc6 {[%clk 0:02:59]}  bxc6 {[%clk 0:03:01]} 7. Bd3 {[%clk 0:02:59]}  O-O {[%clk 0:03:02]} 8. O-O {[%clk 0:02:59]}  d5 {[%clk 0:03:02]} 9. Bd2 {[%clk 0:02:59]}  Rb8 {[%clk 0:03:03]} 10. Re1 {[%clk 0:02:58]}  Bg4 {[%clk 0:03:03]} 11. Qc1 {[%clk 0:02:58]}  Re8 {[%clk 0:02:59]} 12. h3 {[%clk 0:02:58]}  dxe4 {[%clk 0:02:44]} 13. Nxe4 {[%clk 0:02:45]}  Rxe4 {[%clk 0:02:39]} 14. Rxe4 {[%clk 0:02:01]}  Bxd2 {[%clk 0:02:31]} 15. Qxd2 {[%clk 0:02:02]}  Nxe4 {[%clk 0:02:31]} 16. Qf4 {[%clk 0:02:02]}  Nc5 {[%clk 0:02:11]} 17. Qxg4 {[%clk 0:01:53]}  Nxd3 {[%clk 0:02:08]} 18. Rd1 {[%clk 0:01:51]}  Qe7 {[%clk 0:01:54]} 19. Rxd3 {[%clk 0:01:43]}  Qe1+ {[%clk 0:01:50]} 20. Kh2 {[%clk 0:01:43]}  Qxf2 {[%clk 0:01:50]} 21. Rf3 {[%clk 0:01:36]}  Qc5 {[%clk 0:01:43]} 22. Qd7 {[%clk 0:01:33]}  Qd6+ {[%clk 0:01:40]} 23. Qxd6 {[%clk 0:01:32]}  cxd6 {[%clk 0:01:41]} 24. b3 {[%clk 0:01:04]}  Kf8 {[%clk 0:01:40]} 25. Rf4 {[%clk 0:01:04]}  a5 {[%clk 0:01:36]} 26. Rc4 {[%clk 0:01:00]}  Rb6 {[%clk 0:01:34]} 27. Re4 {[%clk 0:01:00]}  Rb4 {[%clk 0:01:27]} 28. c4 {[%clk 0:01:00]}  d5 {[%clk 0:01:26]} 29. Re5 {[%clk 0:00:56]}  f6 {[%clk 0:01:10]} 30. Rh5 {[%clk 0:00:56]}  h6 {[%clk 0:00:53]} 31. cxd5 {[%clk 0:00:36]}  Rb5 {[%clk 0:00:53]} 32. Rh4 {[%clk 0:00:25]}  cxd5 {[%clk 0:00:53]} 33. Kg3 {[%clk 0:00:19]}  Ke7 {[%clk 0:00:52]} 34. Ra4 {[%clk 0:00:19]}  Ke6 {[%clk 0:00:50]} 35. Kf4 {[%clk 0:00:19]}  Rb4+ {[%clk 0:00:46]} 36. Rxb4 {[%clk 0:00:12]}  axb4 {[%clk 0:00:47]} 37. g4 {[%clk 0:00:10]}  g5+ {[%clk 0:00:43]} 38. Ke3 {[%clk 0:00:10]}  f5 {[%clk 0:00:44]} 39. gxf5+ {[%clk 0:00:06]}  Kxf5 {[%clk 0:00:44]} 40. Kd4 {[%clk 0:00:06]}  h5 {[%clk 0:00:32]} 41. Kxd5 {[%clk 0:00:03]}  g4 {[%clk 0:00:33]} 42. hxg4+ {[%clk 0:00:04]}  hxg4 {[%clk 0:00:28]} 43. Kc5 {[%clk 0:00:05]}  g3 {[%clk 0:00:28]} 44. Kxb4 {[%clk 0:00:06]}  g2 {[%clk 0:00:28]} 45. a4 {[%clk 0:00:06]}  g1=Q {[%clk 0:00:29]} 46. a5 {[%clk 0:00:07]}  Ke6 {[%clk 0:00:30]} 47. Kb5 {[%clk 0:00:06]}  Kd6 {[%clk 0:00:30]} 48. b4 {[%clk 0:00:06]}  Qa7 {[%clk 0:00:30]} 49. Ka4 {[%clk 0:00:04]}  Kc6 {[%clk 0:00:30]} 50. b5+ {[%clk 0:00:05]}  Kc5 {[%clk 0:00:31]} 51. b6 {[%clk 0:00:05]}  Qa6 {[%clk 0:00:32]} 52. Kb3 {[%clk 0:00:05]}  Qxa5 {[%clk 0:00:32]} 53. Kb2 {[%clk 0:00:05]}  Qxb6+ {[%clk 0:00:32]} 54. Ka1 {[%clk 0:00:06]}  Kc4 {[%clk 0:00:31]} 55. Ka2 {[%clk 0:00:07]}  Kc3 {[%clk 0:00:32]} 56. Ka3 {[%clk 0:00:07]}  Qa5# {[%clk 0:00:32]} 0-1


[Site "https://www.chess.com"]

[Event "Titled Tuesday Blitz March 15 Late 2022"]
[White "Ardila, Oscar Humberto"]
[Black "Sarkar, Justin"]
[WhiteFideId "4404742"]
[BlackFideId "2010011"]
[WhiteElo "1966"]
[BlackElo "2038"]
[Result "1/2-1/2"]
[Round "11"]
[TimeControl "180+1"]
[Date "2022.03.16"]
[WhiteClock "0:00:33"]
[BlackClock "0:00:05"]

1. d4 {[%clk 0:03:00]}  Nf6 {[%clk 0:02:57]} 2. c4 {[%clk 0:03:00]}  e6 {[%clk 0:02:56]} 3. Nc3 {[%clk 0:02:59]}  Bb4 {[%clk 0:02:56]} 4. Bd2 {[%clk 0:03:00]}  c5 {[%clk 0:02:38]} 5. dxc5 {[%clk 0:02:59]}  Na6 {[%clk 0:02:07]} 6. Nf3 {[%clk 0:02:59]}  Nxc5 {[%clk 0:02:04]} 7. e3 {[%clk 0:02:59]}  O-O {[%clk 0:02:01]} 8. Be2 {[%clk 0:02:59]}  d6 {[%clk 0:01:55]} 9. O-O {[%clk 0:02:59]}  b6 {[%clk 0:01:50]} 10. Qc2 {[%clk 0:02:58]}  Bb7 {[%clk 0:01:46]} 11. Rfd1 {[%clk 0:02:57]}  Qe7 {[%clk 0:01:38]} 12. a3 {[%clk 0:02:55]}  Bxc3 {[%clk 0:01:37]} 13. Bxc3 {[%clk 0:02:56]}  Be4 {[%clk 0:01:29]} 14. Bxf6 {[%clk 0:02:33]}  Qxf6 {[%clk 0:01:30]} 15. Qc3 {[%clk 0:02:26]}  Qxc3 {[%clk 0:01:30]} 16. bxc3 {[%clk 0:02:26]}  Rfd8 {[%clk 0:01:27]} 17. Nd4 {[%clk 0:02:16]}  Kf8 {[%clk 0:01:22]} 18. Bf3 {[%clk 0:02:16]}  Bxf3 {[%clk 0:01:04]} 19. gxf3 {[%clk 0:02:16]}  Rd7 {[%clk 0:00:56]} 20. Kf1 {[%clk 0:02:16]}  Na4 {[%clk 0:00:50]} 21. Rac1 {[%clk 0:02:13]}  Rc8 {[%clk 0:00:44]} 22. Nb5 {[%clk 0:02:13]}  Rxc4 {[%clk 0:00:41]} 23. Nxd6 {[%clk 0:02:08]}  Rxc3 {[%clk 0:00:30]} 24. Nb5 {[%clk 0:01:51]}  Rxd1+ {[%clk 0:00:27]} 25. Rxd1 {[%clk 0:01:51]}  Rb3 {[%clk 0:00:27]} 26. Nxa7 {[%clk 0:01:46]}  Rxa3 {[%clk 0:00:19]} 27. Rd7 {[%clk 0:01:40]}  Nc5 {[%clk 0:00:16]} 28. Rc7 {[%clk 0:01:40]}  g5 {[%clk 0:00:13]} 29. Nc6 {[%clk 0:01:39]}  Ra2 {[%clk 0:00:09]} 30. Ne5 {[%clk 0:01:39]}  f5 {[%clk 0:00:05]} 31. Rxh7 {[%clk 0:01:36]}  b5 {[%clk 0:00:05]} 32. Nd7+ {[%clk 0:01:36]}  Nxd7 {[%clk 0:00:04]} 33. Rxd7 {[%clk 0:01:37]}  b4 {[%clk 0:00:04]} 34. Rb7 {[%clk 0:01:37]}  Rb2 {[%clk 0:00:04]} 35. Kg2 {[%clk 0:01:35]}  b3 {[%clk 0:00:04]} 36. f4 {[%clk 0:01:29]}  gxf4 {[%clk 0:00:03]} 37. exf4 {[%clk 0:01:29]}  Rb1 {[%clk 0:00:03]} 38. Kf3 {[%clk 0:01:29]}  Ke8 {[%clk 0:00:02]} 39. h4 {[%clk 0:01:29]}  Rh1 {[%clk 0:00:01]} 40. Kg2 {[%clk 0:01:26]}  Rxh4 {[%clk 0:00:01]} 41. Kg3 {[%clk 0:01:21]}  Rg4+ {[%clk 0:00:01]} 42. Kf3 {[%clk 0:01:22]}  Rh4 {[%clk 0:00:02]} 43. Kg3 {[%clk 0:01:19]}  Rg4+ {[%clk 0:00:02]} 44. Kf3 {[%clk 0:01:17]}  Rh4 {[%clk 0:00:02]} 45. Ke3 {[%clk 0:01:17]}  Rh3+ {[%clk 0:00:02]} 46. f3 {[%clk 0:01:17]}  Rh1 {[%clk 0:00:02]} 47. Rxb3 {[%clk 0:01:17]}  Ke7 {[%clk 0:00:02]} 48. Rb7+ {[%clk 0:01:13]}  Kf6 {[%clk 0:00:02]} 49. Rb8 {[%clk 0:01:13]}  Re1+ {[%clk 0:00:03]} 50. Kf2 {[%clk 0:01:14]}  Rd1 {[%clk 0:00:03]} 51. Ke2 {[%clk 0:01:12]}  Rc1 {[%clk 0:00:03]} 52. Rf8+ {[%clk 0:01:11]}  Ke7 {[%clk 0:00:03]} 53. Rh8 {[%clk 0:01:10]}  Rc2+ {[%clk 0:00:03]} 54. Ke3 {[%clk 0:01:10]}  Ra2 {[%clk 0:00:03]} 55. Rh7+ {[%clk 0:01:09]}  Kd6 {[%clk 0:00:04]} 56. Rh8 {[%clk 0:01:07]}  Ra3+ {[%clk 0:00:04]} 57. Kf2 {[%clk 0:01:07]}  Ra2+ {[%clk 0:00:04]} 58. Kg3 {[%clk 0:01:07]}  Ra3 {[%clk 0:00:05]} 59. Rd8+ {[%clk 0:01:07]}  Ke7 {[%clk 0:00:05]} 60. Rb8 {[%clk 0:01:07]}  Kf6 {[%clk 0:00:05]} 61. Rb6 {[%clk 0:01:07]}  Ra1 {[%clk 0:00:05]} 62. Rb3 {[%clk 0:01:04]}  Ra2 {[%clk 0:00:05]} 63. Rc3 {[%clk 0:01:03]}  Rb2 {[%clk 0:00:05]} 64. Re3 {[%clk 0:01:03]}  Rc2 {[%clk 0:00:05]} 65. Re1 {[%clk 0:01:03]}  Rb2 {[%clk 0:00:05]} 66. Rh1 {[%clk 0:01:02]}  Ra2 {[%clk 0:00:05]} 67. Rh6+ {[%clk 0:01:02]}  Kf7 {[%clk 0:00:05]} 68. Rh7+ {[%clk 0:01:02]}  Kf6 {[%clk 0:00:05]} 69. Rh8 {[%clk 0:01:02]}  Rb2 {[%clk 0:00:05]} 70. Rf8+ {[%clk 0:01:00]}  Ke7 {[%clk 0:00:05]} 71. Ra8 {[%clk 0:00:58]}  Kf6 {[%clk 0:00:05]} 72. Ra3 {[%clk 0:00:57]}  Rc2 {[%clk 0:00:04]} 73. Kh3 {[%clk 0:00:57]}  Rd2 {[%clk 0:00:04]} 74. Rb3 {[%clk 0:00:55]}  Rc2 {[%clk 0:00:04]} 75. Kh4 {[%clk 0:00:52]}  Rh2+ {[%clk 0:00:04]} 76. Kg3 {[%clk 0:00:51]}  Rc2 {[%clk 0:00:04]} 77. Rb7 {[%clk 0:00:44]}  Rd2 {[%clk 0:00:04]} 78. Rc7 {[%clk 0:00:44]}  Rb2 {[%clk 0:00:04]} 79. Rc1 {[%clk 0:00:42]}  Ra2 {[%clk 0:00:04]} 80. Rd1 {[%clk 0:00:42]}  Rb2 {[%clk 0:00:04]} 81. Re1 {[%clk 0:00:42]}  Rc2 {[%clk 0:00:05]} 82. Re5 {[%clk 0:00:41]}  Rd2 {[%clk 0:00:04]} 83. Ra5 {[%clk 0:00:40]}  Rc2 {[%clk 0:00:04]} 84. Ra8 {[%clk 0:00:40]}  Rd2 {[%clk 0:00:04]} 85. Rf8+ {[%clk 0:00:39]}  Ke7 {[%clk 0:00:04]} 86. Rg8 {[%clk 0:00:39]}  Kf7 {[%clk 0:00:05]} 87. Rh8 {[%clk 0:00:38]}  Kg7 {[%clk 0:00:05]} 88. Ra8 {[%clk 0:00:37]}  Kf6 {[%clk 0:00:05]} 89. Rf8+ {[%clk 0:00:35]}  Kg7 {[%clk 0:00:05]} 90. Rb8 {[%clk 0:00:34]}  Kf6 {[%clk 0:00:05]} 91. Rf8+ {[%clk 0:00:33]} 1/2-1/2


[Site "https://www.chess.com"]

[Event "Titled Tuesday Blitz March 15 Late 2022"]
[White "Barp, Alberto"]
[Black "Romanchuk, Viktor"]
[WhiteFideId "872555"]
[BlackFideId "14109271"]
[WhiteElo "2229"]
[BlackElo "2242"]
[Result "1/2-1/2"]
[Round "11"]
[TimeControl "180+1"]
[Date "2022.03.15"]
[WhiteClock "0:00:07"]
[BlackClock "0:00:04"]

1. d4 {[%clk 0:02:59]}  d5 {[%clk 0:02:59]} 2. c4 {[%clk 0:02:58]}  c6 {[%clk 0:02:59]} 3. cxd5 {[%clk 0:02:56]}  cxd5 {[%clk 0:02:58]} 4. Bf4 {[%clk 0:02:57]}  Nf6 {[%clk 0:02:58]} 5. e3 {[%clk 0:02:56]}  Nc6 {[%clk 0:02:58]} 6. Nc3 {[%clk 0:02:57]}  Bf5 {[%clk 0:02:58]} 7. Nf3 {[%clk 0:02:57]}  e6 {[%clk 0:02:55]} 8. Bb5 {[%clk 0:02:53]}  Rc8 {[%clk 0:02:54]} 9. Ne5 {[%clk 0:02:52]}  Qb6 {[%clk 0:02:41]} 10. Qb3 {[%clk 0:02:31]}  Be7 {[%clk 0:02:34]} 11. Bxc6+ {[%clk 0:02:14]}  bxc6 {[%clk 0:02:32]} 12. O-O {[%clk 0:02:12]}  O-O {[%clk 0:02:23]} 13. Qxb6 {[%clk 0:02:07]}  axb6 {[%clk 0:02:22]} 14. Na4 {[%clk 0:02:07]}  Bd8 {[%clk 0:02:03]} 15. Rfc1 {[%clk 0:02:02]}  c5 {[%clk 0:02:01]} 16. dxc5 {[%clk 0:01:54]}  bxc5 {[%clk 0:01:59]} 17. Rxc5 {[%clk 0:01:44]}  Ra8 {[%clk 0:01:53]} 18. Nc3 {[%clk 0:01:39]}  Nh5 {[%clk 0:01:36]} 19. g4 {[%clk 0:01:21]}  Nxf4 {[%clk 0:01:28]} 20. gxf5 {[%clk 0:01:20]}  Nh5 {[%clk 0:00:55]} 21. fxe6 {[%clk 0:01:14]}  fxe6 {[%clk 0:00:56]} 22. Rc6 {[%clk 0:01:12]}  Re8 {[%clk 0:00:49]} 23. a4 {[%clk 0:01:06]}  Rb8 {[%clk 0:00:42]} 24. Nb5 {[%clk 0:00:58]}  Nf6 {[%clk 0:00:36]} 25. Rac1 {[%clk 0:00:53]}  Ne4 {[%clk 0:00:34]} 26. Rc8 {[%clk 0:00:50]}  Bf6 {[%clk 0:00:33]} 27. Rxb8 {[%clk 0:00:46]}  Rxb8 {[%clk 0:00:34]} 28. Nd3 {[%clk 0:00:40]}  Nd2 {[%clk 0:00:29]} 29. Rc6 {[%clk 0:00:36]}  e5 {[%clk 0:00:24]} 30. Nb4 {[%clk 0:00:32]}  d4 {[%clk 0:00:18]} 31. Nd5 {[%clk 0:00:28]}  dxe3 {[%clk 0:00:15]} 32. fxe3 {[%clk 0:00:25]}  Bg5 {[%clk 0:00:14]} 33. Kf2 {[%clk 0:00:22]}  h5 {[%clk 0:00:11]} 34. Ke2 {[%clk 0:00:21]}  Ne4 {[%clk 0:00:11]} 35. Kd3 {[%clk 0:00:21]}  Nf2+ {[%clk 0:00:11]} 36. Kc4 {[%clk 0:00:21]}  Ng4 {[%clk 0:00:11]} 37. e4 {[%clk 0:00:20]}  Nxh2 {[%clk 0:00:10]} 38. a5 {[%clk 0:00:20]}  Bh4 {[%clk 0:00:09]} 39. a6 {[%clk 0:00:20]}  Bf2 {[%clk 0:00:09]} 40. a7 {[%clk 0:00:19]}  Bxa7 {[%clk 0:00:09]} 41. Nxa7 {[%clk 0:00:18]}  Rxb2 {[%clk 0:00:10]} 42. Re6 {[%clk 0:00:16]}  Ng4 {[%clk 0:00:09]} 43. Nc6 {[%clk 0:00:16]}  h4 {[%clk 0:00:08]} 44. Nxe5 {[%clk 0:00:15]}  Nxe5+ {[%clk 0:00:04]} 45. Rxe5 {[%clk 0:00:16]}  h3 {[%clk 0:00:04]} 46. Rh5 {[%clk 0:00:15]}  h2 {[%clk 0:00:04]} 47. Kc3 {[%clk 0:00:15]}  Ra2 {[%clk 0:00:03]} 48. e5 {[%clk 0:00:13]}  Kf7 {[%clk 0:00:03]} 49. Nf4 {[%clk 0:00:13]}  g6 {[%clk 0:00:03]} 50. Rh7+ {[%clk 0:00:12]}  Kg8 {[%clk 0:00:03]} 51. Rh3 {[%clk 0:00:09]}  Rf2 {[%clk 0:00:01]} 52. Nxg6 {[%clk 0:00:07]}  Rf3+ {[%clk 0:00:02]} 53. Rxf3 {[%clk 0:00:07]}  h1=Q {[%clk 0:00:02]} 54. Re3 {[%clk 0:00:03]}  Qc6+ {[%clk 0:00:02]} 55. Kd4 {[%clk 0:00:03]}  Qxg6 {[%clk 0:00:03]} 56. e6 {[%clk 0:00:03]}  Kf8 {[%clk 0:00:02]} 57. Re5 {[%clk 0:00:02]}  Ke7 {[%clk 0:00:03]} 58. Kd5 {[%clk 0:00:03]}  Qd3+ {[%clk 0:00:02]} 59. Kc5 {[%clk 0:00:04]}  Qc3+ {[%clk 0:00:02]} 60. Kd5 {[%clk 0:00:05]}  Qd3+ {[%clk 0:00:03]} 61. Kc5 {[%clk 0:00:05]}  Qc3+ {[%clk 0:00:03]} 62. Kd5 {[%clk 0:00:05]}  Qa5+ {[%clk 0:00:03]} 63. Ke4 {[%clk 0:00:06]}  Qb4+ {[%clk 0:00:03]} 64. Kf5 {[%clk 0:00:06]}  Qb1+ {[%clk 0:00:04]} 65. Re4 {[%clk 0:00:07]}  Qxe4+ {[%clk 0:00:03]} 66. Kxe4 {[%clk 0:00:07]}  Kxe6 {[%clk 0:00:04]} 1/2-1/2


[Site "https://www.chess.com"]

[Event "Titled Tuesday Blitz March 15 Late 2022"]
[White "Bilych, Olexiy"]
[Black "Lysyj, Igor"]
[WhiteFideId "14156504"]
[BlackFideId "4150120"]
[WhiteElo "2176"]
[BlackElo "2611"]
[Result "0-1"]
[Round "11"]
[TimeControl "180+1"]
[Date "2022.03.15"]
[WhiteClock "0:00:16"]
[BlackClock "0:00:13"]

1. e4 {[%clk 0:03:00]}  e5 {[%clk 0:02:59]} 2. Nf3 {[%clk 0:03:01]}  Nc6 {[%clk 0:03:00]} 3. Bc4 {[%clk 0:03:01]}  Bc5 {[%clk 0:02:59]} 4. c3 {[%clk 0:03:00]}  Nf6 {[%clk 0:02:58]} 5. d3 {[%clk 0:03:01]}  d6 {[%clk 0:02:58]} 6. O-O {[%clk 0:03:01]}  h6 {[%clk 0:02:57]} 7. Nbd2 {[%clk 0:02:55]}  O-O {[%clk 0:02:56]} 8. b4 {[%clk 0:02:48]}  Bb6 {[%clk 0:02:56]} 9. a4 {[%clk 0:02:48]}  a5 {[%clk 0:02:55]} 10. b5 {[%clk 0:02:49]}  Ne7 {[%clk 0:02:55]} 11. Ba3 {[%clk 0:02:49]}  Ng6 {[%clk 0:02:52]} 12. d4 {[%clk 0:02:36]}  Re8 {[%clk 0:02:48]} 13. Qb3 {[%clk 0:02:37]}  Be6 {[%clk 0:02:47]} 14. Bxe6 {[%clk 0:02:35]}  Rxe6 {[%clk 0:02:47]} 15. Rfe1 {[%clk 0:02:10]}  Qd7 {[%clk 0:02:12]} 16. Rad1 {[%clk 0:01:58]}  Ree8 {[%clk 0:02:05]} 17. Nc4 {[%clk 0:01:53]}  Qe6 {[%clk 0:02:04]} 18. d5 {[%clk 0:01:29]}  Qd7 {[%clk 0:01:44]} 19. Bxd6 {[%clk 0:01:20]}  Bxf2+ {[%clk 0:01:43]} 20. Kxf2 {[%clk 0:01:20]}  cxd6 {[%clk 0:01:44]} 21. Nb6 {[%clk 0:01:20]}  Qc7 {[%clk 0:01:42]} 22. Nxa8 {[%clk 0:01:19]}  Qc5+ {[%clk 0:01:40]} 23. Kf1 {[%clk 0:01:03]}  Rxa8 {[%clk 0:01:39]} 24. b6 {[%clk 0:00:57]}  Ng4 {[%clk 0:01:34]} 25. Rd2 {[%clk 0:00:54]}  Ne3+ {[%clk 0:01:32]} 26. Kg1 {[%clk 0:00:24]}  Nc2+ {[%clk 0:01:24]} 27. Rf2 {[%clk 0:00:23]}  Nxe1 {[%clk 0:01:24]} 28. Nxe1 {[%clk 0:00:24]}  Nf4 {[%clk 0:01:22]} 29. Kf1 {[%clk 0:00:24]}  Rc8 {[%clk 0:01:16]} 30. Qb5 {[%clk 0:00:15]}  Qa3 {[%clk 0:00:37]} 31. g3 {[%clk 0:00:11]}  Nh3 {[%clk 0:00:33]} 32. Rf3 {[%clk 0:00:11]}  Ng5 {[%clk 0:00:32]} 33. Re3 {[%clk 0:00:07]}  Qc1 {[%clk 0:00:29]} 34. Qd3 {[%clk 0:00:05]}  Rf8 {[%clk 0:00:21]} 35. h4 {[%clk 0:00:06]}  Nh7 {[%clk 0:00:20]} 36. Kg2 {[%clk 0:00:04]}  Nf6 {[%clk 0:00:20]} 37. Qe2 {[%clk 0:00:03]}  Nd7 {[%clk 0:00:20]} 38. Rf3 {[%clk 0:00:02]}  Nc5 {[%clk 0:00:20]} 39. Qc2 {[%clk 0:00:02]}  Qxc2+ {[%clk 0:00:19]} 40. Nxc2 {[%clk 0:00:03]}  Nxa4 {[%clk 0:00:20]} 41. Na3 {[%clk 0:00:03]}  Rc8 {[%clk 0:00:19]} 42. Nb5 {[%clk 0:00:04]}  Nxb6 {[%clk 0:00:18]} 43. Nxd6 {[%clk 0:00:04]}  Ra8 {[%clk 0:00:18]} 44. Nxf7 {[%clk 0:00:04]}  a4 {[%clk 0:00:18]} 45. Nxe5 {[%clk 0:00:02]}  a3 {[%clk 0:00:19]} 46. Rf1 {[%clk 0:00:03]}  a2 {[%clk 0:00:19]} 47. Ra1 {[%clk 0:00:04]}  Ra3 {[%clk 0:00:17]} 48. d6 {[%clk 0:00:03]}  Kf8 {[%clk 0:00:18]} 49. c4 {[%clk 0:00:02]}  Ke8 {[%clk 0:00:17]} 50. c5 {[%clk 0:00:03]}  Nd7 {[%clk 0:00:17]} 51. Nc4 {[%clk 0:00:03]}  Ra4 {[%clk 0:00:17]} 52. Nd2 {[%clk 0:00:02]}  Nxc5 {[%clk 0:00:16]} 53. e5 {[%clk 0:00:03]}  Kd7 {[%clk 0:00:16]} 54. Kf2 {[%clk 0:00:03]}  Ke6 {[%clk 0:00:17]} 55. Ke2 {[%clk 0:00:02]}  Kxe5 {[%clk 0:00:17]} 56. d7 {[%clk 0:00:03]}  Nxd7 {[%clk 0:00:17]} 57. Kd3 {[%clk 0:00:03]}  Nc5+ {[%clk 0:00:17]} 58. Kc3 {[%clk 0:00:03]}  Kd5 {[%clk 0:00:16]} 59. Rd1 {[%clk 0:00:03]}  a1=Q+ {[%clk 0:00:15]} 60. Rxa1 {[%clk 0:00:04]}  Rxa1 {[%clk 0:00:15]} 61. Kb2 {[%clk 0:00:05]}  Rg1 {[%clk 0:00:14]} 62. Nf3 {[%clk 0:00:06]}  Rxg3 {[%clk 0:00:15]} 63. Nd2 {[%clk 0:00:07]}  b5 {[%clk 0:00:14]} 64. h5 {[%clk 0:00:07]}  b4 {[%clk 0:00:15]} 65. Kc2 {[%clk 0:00:06]}  Rg2 {[%clk 0:00:14]} 66. Kd1 {[%clk 0:00:07]}  Rxd2+ {[%clk 0:00:13]} 67. Kxd2 {[%clk 0:00:07]}  Kc4 {[%clk 0:00:14]} 68. Kc2 {[%clk 0:00:08]}  b3+ {[%clk 0:00:14]} 69. Kb2 {[%clk 0:00:09]}  Nd3+ {[%clk 0:00:14]} 70. Kb1 {[%clk 0:00:09]}  Kc3 {[%clk 0:00:15]} 71. Ka1 {[%clk 0:00:10]}  Nf4 {[%clk 0:00:12]} 72. Kb1 {[%clk 0:00:11]}  Nxh5 {[%clk 0:00:12]} 73. Kc1 {[%clk 0:00:11]}  g5 {[%clk 0:00:12]} 74. Kb1 {[%clk 0:00:12]}  g4 {[%clk 0:00:12]} 75. Kc1 {[%clk 0:00:13]}  g3 {[%clk 0:00:13]} 76. Kd1 {[%clk 0:00:14]}  g2 {[%clk 0:00:13]} 77. Ke2 {[%clk 0:00:15]}  g1=Q {[%clk 0:00:13]} 78. Kf3 {[%clk 0:00:15]}  Qg3+ {[%clk 0:00:13]} 79. Ke4 {[%clk 0:00:16]}  Qf4+ {[%clk 0:00:13]} 0-1


[Site "https://www.chess.com"]

[Event "Titled Tuesday Blitz March 15 Late 2022"]
[White "Bluebaum, Matthias"]
[Black "Dubov, Daniil"]
[WhiteFideId "24651516"]
[BlackFideId "24126055"]
[WhiteElo "2550"]
[BlackElo "2791"]
[Result "0-1"]
[Round "11"]
[TimeControl "180+1"]
[Date "2022.03.15"]
[WhiteClock "0:00:09"]
[BlackClock "0:00:18"]

1. b3 {[%clk 0:03:00]}  e5 {[%clk 0:02:59]} 2. Bb2 {[%clk 0:03:01]}  Nc6 {[%clk 0:02:59]} 3. e3 {[%clk 0:03:02]}  g6 {[%clk 0:02:59]} 4. Nf3 {[%clk 0:03:02]}  Bg7 {[%clk 0:02:59]} 5. d4 {[%clk 0:03:03]}  e4 {[%clk 0:02:58]} 6. Nfd2 {[%clk 0:03:01]}  f5 {[%clk 0:02:59]} 7. c4 {[%clk 0:02:57]}  Nh6 {[%clk 0:02:56]} 8. Be2 {[%clk 0:02:52]}  O-O {[%clk 0:02:56]} 9. h4 {[%clk 0:02:49]}  f4 {[%clk 0:02:55]} 10. Nxe4 {[%clk 0:02:10]}  fxe3 {[%clk 0:02:53]} 11. fxe3 {[%clk 0:02:10]}  Nf5 {[%clk 0:02:47]} 12. Qd2 {[%clk 0:02:04]}  Bh6 {[%clk 0:02:21]} 13. Rh3 {[%clk 0:01:43]}  Nxh4 {[%clk 0:02:13]} 14. Nbc3 {[%clk 0:01:43]}  d5 {[%clk 0:02:08]} 15. Rh2 {[%clk 0:00:57]}  dxe4 {[%clk 0:01:57]} 16. O-O-O {[%clk 0:00:50]}  Nf5 {[%clk 0:01:39]} 17. Rxh6 {[%clk 0:00:47]}  Nxh6 {[%clk 0:01:40]} 18. d5 {[%clk 0:00:48]}  Bf5 {[%clk 0:01:22]} 19. Rh1 {[%clk 0:00:47]}  Ne5 {[%clk 0:01:02]} 20. Rxh6 {[%clk 0:00:44]}  Qg5 {[%clk 0:01:03]} 21. Rh1 {[%clk 0:00:36]}  Qxg2 {[%clk 0:01:02]} 22. Rd1 {[%clk 0:00:33]}  Nd3+ {[%clk 0:00:49]} 23. Bxd3 {[%clk 0:00:27]}  Qxd2+ {[%clk 0:00:50]} 24. Rxd2 {[%clk 0:00:27]}  exd3 {[%clk 0:00:50]} 25. e4 {[%clk 0:00:28]}  Bg4 {[%clk 0:00:45]} 26. Rxd3 {[%clk 0:00:28]}  Rf1+ {[%clk 0:00:43]} 27. Kc2 {[%clk 0:00:28]}  Rf2+ {[%clk 0:00:44]} 28. Kb1 {[%clk 0:00:28]}  h5 {[%clk 0:00:43]} 29. Rg3 {[%clk 0:00:26]}  Rf1+ {[%clk 0:00:39]} 30. Kc2 {[%clk 0:00:26]}  Raf8 {[%clk 0:00:39]} 31. b4 {[%clk 0:00:24]}  R8f3 {[%clk 0:00:37]} 32. Rxf3 {[%clk 0:00:23]}  Rxf3 {[%clk 0:00:36]} 33. Nb5 {[%clk 0:00:23]}  Rf2+ {[%clk 0:00:24]} 34. Kb3 {[%clk 0:00:23]}  Rxb2+ {[%clk 0:00:22]} 35. Kxb2 {[%clk 0:00:24]}  h4 {[%clk 0:00:23]} 36. Nxc7 {[%clk 0:00:08]}  h3 {[%clk 0:00:23]} 37. Ne8 {[%clk 0:00:08]}  Kf7 {[%clk 0:00:20]} 38. Nd6+ {[%clk 0:00:06]}  Kf8 {[%clk 0:00:20]} 39. c5 {[%clk 0:00:03]}  h2 {[%clk 0:00:19]} 40. c6 {[%clk 0:00:04]}  bxc6 {[%clk 0:00:18]} 41. dxc6 {[%clk 0:00:05]}  h1=Q {[%clk 0:00:18]} 42. c7 {[%clk 0:00:06]}  Qh2+ {[%clk 0:00:18]} 43. Ka3 {[%clk 0:00:07]}  Qxd6 {[%clk 0:00:18]} 44. Ka4 {[%clk 0:00:08]}  Bc8 {[%clk 0:00:18]} 45. Ka5 {[%clk 0:00:09]}  Qa6# {[%clk 0:00:18]} 0-1


[Site "https://www.chess.com"]

[Event "Titled Tuesday Blitz March 15 Late 2022"]
[White "Chen, Justin"]
[Black "Rastbod, Ali"]
[WhiteFideId "2098199"]
[BlackFideId "12567477"]
[WhiteElo "2506"]
[BlackElo "2200"]
[Result "0-1"]
[Round "11"]
[TimeControl "180+1"]
[Date "2022.03.15"]
[WhiteClock "0:00:01"]
[BlackClock "0:00:56"]

1. Nf3 {[%clk 0:03:00]}  d5 {[%clk 0:02:56]} 2. e3 {[%clk 0:02:58]}  Nf6 {[%clk 0:02:56]} 3. c4 {[%clk 0:02:58]}  e6 {[%clk 0:02:57]} 4. Nc3 {[%clk 0:02:58]}  Be7 {[%clk 0:02:57]} 5. b3 {[%clk 0:02:58]}  O-O {[%clk 0:02:57]} 6. Bb2 {[%clk 0:02:57]}  b6 {[%clk 0:02:55]} 7. cxd5 {[%clk 0:02:54]}  exd5 {[%clk 0:02:53]} 8. d4 {[%clk 0:02:51]}  Re8 {[%clk 0:02:39]} 9. g3 {[%clk 0:02:50]}  Bf5 {[%clk 0:02:37]} 10. Bg2 {[%clk 0:02:50]}  c6 {[%clk 0:02:38]} 11. O-O {[%clk 0:02:48]}  Nbd7 {[%clk 0:02:35]} 12. Rc1 {[%clk 0:02:47]}  Rc8 {[%clk 0:02:35]} 13. Qe2 {[%clk 0:02:40]}  h6 {[%clk 0:02:22]} 14. Rfd1 {[%clk 0:02:34]}  Bb4 {[%clk 0:02:19]} 15. Qa6 {[%clk 0:01:35]}  Rc7 {[%clk 0:02:11]} 16. Ne5 {[%clk 0:01:18]}  Nxe5 {[%clk 0:01:54]} 17. dxe5 {[%clk 0:01:19]}  Bxc3 {[%clk 0:01:55]} 18. Bxc3 {[%clk 0:01:14]}  Ne4 {[%clk 0:01:55]} 19. Bb2 {[%clk 0:01:04]}  Nc5 {[%clk 0:01:30]} 20. Qe2 {[%clk 0:01:02]}  Qc8 {[%clk 0:01:27]} 21. b4 {[%clk 0:00:51]}  Ne4 {[%clk 0:01:23]} 22. f3 {[%clk 0:00:30]}  Ng5 {[%clk 0:01:21]} 23. h4 {[%clk 0:00:30]}  Nh7 {[%clk 0:01:20]} 24. Kh2 {[%clk 0:00:25]}  Nf8 {[%clk 0:01:19]} 25. g4 {[%clk 0:00:19]}  Be6 {[%clk 0:01:12]} 26. e4 {[%clk 0:00:18]}  dxe4 {[%clk 0:01:10]} 27. Qxe4 {[%clk 0:00:19]}  Bd5 {[%clk 0:01:10]} 28. Qf4 {[%clk 0:00:17]}  Ne6 {[%clk 0:01:08]} 29. Qg3 {[%clk 0:00:16]}  Rd8 {[%clk 0:01:04]} 30. a3 {[%clk 0:00:11]}  g5 {[%clk 0:01:03]} 31. Rd2 {[%clk 0:00:07]}  Nf4 {[%clk 0:00:57]} 32. Rcd1 {[%clk 0:00:06]}  Qe6 {[%clk 0:00:57]} 33. Bc1 {[%clk 0:00:01]}  Rcd7 {[%clk 0:00:57]} 34. Rd4 {[%clk 0:00:01]}  Ne2 {[%clk 0:00:57]} 35. Qf2 {[%clk 0:00:01]}  Nxd4 {[%clk 0:00:57]} 36. Qxd4 {[%clk 0:00:01]}  Bxf3 {[%clk 0:00:56]} 0-1


[Site "https://www.chess.com"]